bitfinex/quotes_BTCUSD_20250512
["timestamp","ask_amount","ask_price","bid_price","bid_amount"]
[1747078240290,1.08473685,101790.0,101770.0,0.21634696]
[1747078240501,1.38664527,101790.0,101780.0,0.59838238]
[1747078240738,1.39069798,101790.0,101780.0,0.60820681]
[1747078240946,0.69752164,101790.0,101780.0,0.60820681]
[1747078241158,0.47427619,101800.0,101790.0,0.23595423]
[1747078241381,0.98648251,101800.0,101790.0,0.58853663]
[1747078241586,0.9668376,101800.0,101790.0,0.56888882]
[1747078241790,0.96617443,101800.0,101790.0,0.02468705]
[1747078241997,0.98687443,101800.0,101790.0,0.02468705]
[1747078242207,0.94078725,101800.0,101790.0,0.22117]
[1747078242411,0.84142065,101800.0,101790.0,0.57885916]
[1747078243051,0.84142065,101800.0,101790.0,0.37255207]
[1747078243261,0.84142065,101800.0,101790.0,0.22117]
[1747078243467,0.61130065,101800.0,101790.0,0.57885897]
[1747078243679,0.34993979,101800.0,101790.0,0.6194062]
[1747078243890,0.77537232,101800.0,101790.0,0.62040639]
[1747078244098,0.56509232,101800.0,101790.0,0.62563227]
[1747078244315,0.77533232,101800.0,101790.0,0.61580851]
[1747078244531,0.72634991,101800.0,101790.0,0.61380851]
[1747078244735,0.75234991,101800.0,101790.0,0.62563236]
[1747078245082,0.74252683,101800.0,101790.0,0.02668705]
[1747078245300,0.87768113,101800.0,101790.0,0.02668705]
[1747078245767,1.17768113,101800.0,101790.0,0.0021462]
[1747078245980,1.53054615,101800.0,101790.0,0.0021462]
[1747078246607,1.87054615,101800.0,101790.0,0.0021462]
[1747078246821,1.52268113,101800.0,101790.0,0.0021462]
[1747078249233,1.52256113,101800.0,101790.0,0.0021462]
[1747078249933,1.87042615,101800.0,101790.0,0.0021462]
[1747078250151,1.27042615,101800.0,101790.0,0.0021462]
[1747078250365,1.26542615,101800.0,101790.0,0.0021462]
[1747078250580,1.32448615,101800.0,101790.0,0.0021462]
[1747078251215,1.11436615,101800.0,101790.0,0.0021462]
[1747078251428,0.70744113,101800.0,101790.0,0.0021462]
[1747078251637,1.11480113,101800.0,101790.0,0.0011462]
[1747078251840,1.46266615,101800.0,101790.0,0.0011462]
[1747078252043,1.44966615,101800.0,101790.0,0.0001462]
[1747078252252,1.46466615,101800.0,101790.0,0.0011462]
[1747078252456,1.47366615,101800.0,101790.0,0.0021462]
[1747078252874,1.89159117,101800.0,101790.0,0.0021462]
[1747078253080,1.91905903,101800.0,101790.0,0.0021462]
[1747078253295,0.51621552,101750.0,101740.0,0.03534085]
[1747078253566,0.72625552,101750.0,101740.0,0.22127233]
[1747078253771,0.72625552,101750.0,101740.0,0.2311013]
[1747078253983,0.72625552,101750.0,101740.0,0.27512848]
[1747078254185,0.72625552,101750.0,101740.0,0.29482848]
[1747078254396,0.72625552,101750.0,101740.0,0.30465706]
[1747078254842,0.72925552,101750.0,101740.0,0.30465706]
[1747078255056,0.303,101750.0,101740.0,0.6712214]
[1747078255289,0.21304,101750.0,101740.0,0.6712214]
[1747078255770,0.003,101750.0,101740.0,0.6712214]
[1747078256328,0.003,101750.0,101740.0,1.0112214]
[1747078256947,0.006,101750.0,101740.0,1.0112214]
[1747078257166,0.006,101750.0,101740.0,1.4112214]
[1747078258246,0.02565495,101750.0,101740.0,1.4112214]
[1747078258469,0.23204295,101750.0,101740.0,0.70369941]
[1747078258677,0.02565495,101750.0,101740.0,1.06139272]
[1747078259699,0.02565485,101750.0,101740.0,1.06139272]
[1747078260521,0.03548257,101750.0,101740.0,1.06139272]
[1747078261206,0.22221504,101750.0,101740.0,0.70369941]
[1747078261433,0.61806982,101750.0,101740.0,0.01014624]
[1747078261925,0.35826982,101750.0,101740.0,0.00014624]
[1747078262141,1.64613484,101750.0,101740.0,0.00014624]
[1747078262371,1.64313484,101750.0,101740.0,0.00014624]
[1747078262896,1.29626982,101750.0,101740.0,0.00014624]
[1747078263156,1.27586982,101750.0,101740.0,0.00014624]
[1747078263419,1.25606982,101750.0,101740.0,0.00014624]
[1747078263622,1.25306982,101750.0,101740.0,0.00014624]
[1747078264124,0.3978543,101750.0,101740.0,0.59861736]
[1747078264350,0.5512299,101750.0,101740.0,0.61821736]
[1747078264545,0.5512299,101750.0,101740.0,0.62868907]
[1747078264775,0.55123076,101750.0,101740.0,0.63851756]
[1747078265001,0.23176117,101750.0,101740.0,0.64834585]
[1747078265224,0.23157475,101750.0,101740.0,0.64834585]
[1747078265453,0.24140247,101750.0,101740.0,0.64834585]
[1747078265890,0.25123028,101750.0,101740.0,0.64834585]
[1747078266638,0.23157475,101750.0,101740.0,0.64834585]
[1747078266871,0.002,101750.0,101740.0,1.04834585]
[1747078267110,0.002,101750.0,101740.0,1.38834585]
[1747078267336,0.002,101750.0,101740.0,1.83206517]
[1747078267549,0.002,101750.0,101740.0,2.04238517]
[1747078267760,0.002,101750.0,101740.0,1.69452015]
[1747078267991,0.002,101750.0,101740.0,2.05212188]
[1747078268215,0.20988,101770.0,101760.0,0.28976168]
[1747078268445,0.36573392,101790.0,101780.0,0.25051726]
[1747078268733,0.04608718,101790.0,101780.0,0.63758228]
[1747078268970,0.05591055,101790.0,101780.0,0.63758228]
[1747078269203,0.06573421,101790.0,101780.0,0.63758228]
[1747078269650,0.01964703,101790.0,101780.0,0.64755315]
[1747078269862,0.02947088,101790.0,101780.0,0.64755315]
[1747078270287,0.02947088,101790.0,101780.0,0.63772872]
[1747078270509,0.24560192,101790.0,101780.0,0.63772872]
[1747078270743,0.24777855,101790.0,101780.0,0.65356918]
[1747078270979,0.54797221,101790.0,101780.0,0.2370298]
[1747078271213,0.62398534,101790.0,101780.0,0.02568709]
[1747078271442,0.32398534,101790.0,101780.0,0.01114624]
[1747078271897,0.33498534,101790.0,101780.0,0.00214624]
[1747078272134,1.87535036,101790.0,101780.0,0.00214624]
[1747078272369,1.52748534,101790.0,101780.0,0.00214624]
[1747078272640,1.18978534,101790.0,101780.0,0.00214624]
[1747078273573,0.88978534,101790.0,101780.0,0.00214624]
[1747078273823,1.05450534,101790.0,101780.0,0.01214624]
[1747078274483,1.05450534,101790.0,101780.0,0.20864849]
[1747078274706,0.323,101790.0,101780.0,0.69936218]
[1747078274924,0.75867403,101790.0,101780.0,0.63060409]
[1747078275569,0.7684974,101790.0,101780.0,0.64042872]
[1747078276137,0.2621905,101790.0,101780.0,0.66007768]
[1747078276340,0.2818385,101790.0,101780.0,0.66007768]
[1747078276590,0.28183927,101790.0,101780.0,0.66007768]
[1747078276796,0.47832222,101790.0,101780.0,0.66007768]
[1747078277024,0.47832222,101790.0,101780.0,0.65025325]
[1747078277702,0.47832222,101790.0,101780.0,0.62077937]
[1747078277960,0.74885114,101790.0,101780.0,0.02668709]
[1747078279319,0.86530544,101790.0,101780.0,0.01214624]
[1747078279939,0.58410544,101790.0,101780.0,0.01214624]
[1747078280330,0.56530544,101790.0,101780.0,0.01214624]
[1747078280538,0.54470544,101790.0,101780.0,0.01214624]
[1747078280763,0.84470544,101790.0,101780.0,0.01214624]
[1747078281347,0.4188543,101790.0,101780.0,0.59070409]
[1747078281668,0.76837817,101790.0,101780.0,0.62082872]
[1747078281849,0.55224713,101790.0,101780.0,0.62082872]
[1747078282046,0.56207089,101790.0,101780.0,0.65105315]
[1747078282238,0.57189484,101790.0,101780.0,0.65105315]
[1747078282638,0.023,101790.0,101780.0,0.65105315]
[1747078282855,0.2326,101790.0,101780.0,0.65105315]
[1747078283500,0.023,101790.0,101780.0,0.74690745]
[1747078283714,0.012,101790.0,101780.0,1.09377247]
[1747078283931,0.02880451,101810.0,101800.0,0.23593202]
[1747078284151,0.52588836,101820.0,101810.0,0.24990722]
[1747078284369,0.73544836,101820.0,101810.0,0.23080741]
[1747078284579,0.7256275,101820.0,101810.0,0.60759455]
[1747078284798,0.7256275,101820.0,101810.0,0.61741647]
[1747078285043,0.73478283,101820.0,101810.0,0.6272383]
[1747078285335,0.43478283,101820.0,101810.0,0.6272383]
[1747078285557,0.25819793,101820.0,101810.0,0.63706003]
[1747078285785,0.45438403,101820.0,101810.0,0.67207845]
[1747078285982,0.43540813,101820.0,101810.0,0.67911172]
[1747078286234,0.43540813,101820.0,101810.0,0.65243489]
[1747078286455,0.43758727,101820.0,101810.0,0.65243489]
[1747078286701,0.44858727,101820.0,101810.0,0.63303489]
[1747078286966,0.44858727,101820.0,101810.0,0.64285672]
[1747078287155,0.44858727,101820.0,101810.0,0.63303489]
[1747078288129,0.23906727,101820.0,101810.0,0.63303489]
[1747078288353,0.45836784,101820.0,101810.0,0.65343489]
[1747078289590,0.45836784,101820.0,101810.0,0.64361297]
[1747078289591,0.44854717,101820.0,101810.0,0.64361297]
[1747078289799,0.43872621,101820.0,101810.0,0.64361297]
[1747078290003,0.43872621,101820.0,101810.0,0.61339085]
[1747078290215,0.43872621,101820.0,101810.0,0.62321297]
[1747078290420,0.43872621,101820.0,101810.0,0.63303499]
[1747078292698,0.22924621,101820.0,101810.0,0.28516997]
[1747078292923,0.43864621,101820.0,101810.0,0.63303499]
[1747078293380,0.43864621,101820.0,101810.0,0.28516997]
[1747078294030,0.43864621,101820.0,101810.0,0.63303499]
[1747078294499,0.22924621,101820.0,101810.0,0.28516997]
[1747078294717,0.72878506,101820.0,101810.0,0.04015927]
[1747078295163,0.72878506,101820.0,101810.0,0.05965927]
[1747078295564,0.73793999,101820.0,101810.0,0.05965927]
[1747078295951,0.73793999,101820.0,101810.0,0.40752429]
[1747078296155,0.0419755,101820.0,101810.0,0.6529344]
[1747078296354,0.04197531,101820.0,101810.0,0.66275594]
[1747078296598,0.05179598,101820.0,101810.0,0.66275594]
[1747078296806,0.26786287,101820.0,101810.0,0.6529344]
[1747078297012,0.25686287,101820.0,101810.0,0.6519344]
[1747078297228,0.23504249,101820.0,101810.0,0.64211277]
[1747078297441,0.0384624,101820.0,101810.0,0.66275604]
[1747078297633,0.05828365,101820.0,101810.0,1.06275604]
[1747078297892,0.25470871,101820.0,101810.0,1.0529345]
[1747078298119,0.0484624,101820.0,101810.0,1.06275604]
[1747078298329,0.05828346,101820.0,101810.0,1.06275604]
[1747078298535,0.05828355,101820.0,101810.0,1.06275604]
[1747078298751,0.0681048,101820.0,101810.0,1.06275604]
[1747078298975,0.05828355,101820.0,101810.0,1.06275604]
[1747078299253,0.0484624,101820.0,101810.0,1.06275604]
[1747078299468,0.0484625,101820.0,101810.0,1.06275604]
[1747078299678,0.0484623,101820.0,101810.0,1.06275604]
[1747078299874,0.03864144,101820.0,101810.0,1.06275604]
[1747078300159,0.03864105,101820.0,101810.0,1.06275604]
[1747078300581,0.05828288,101820.0,101810.0,1.06275604]
[1747078300786,0.05828278,101820.0,101810.0,1.06275604]
[1747078300995,0.03864105,101820.0,101810.0,1.06275604]
[1747078301206,0.04846191,101820.0,101810.0,1.06275604]
[1747078301405,0.03864105,101820.0,101810.0,1.06275604]
[1747078301610,0.04846191,101820.0,101810.0,1.06275604]
[1747078301827,0.05828297,101820.0,101810.0,1.06275604]
[1747078301973,0.04846191,101820.0,101810.0,1.06275604]
[1747078302194,0.05828287,101820.0,101810.0,1.06275604]
[1747078302665,0.05828287,101820.0,101810.0,2.06275604]
[1747078302909,0.04846191,101820.0,101810.0,2.06275604]
[1747078303123,0.05828297,101820.0,101810.0,2.06275604]
[1747078303347,0.05828287,101820.0,101810.0,2.06275604]
[1747078303553,0.04846191,101820.0,101810.0,2.06275604]
[1747078303985,0.03864095,101820.0,101810.0,2.06275604]
[1747078304462,0.019,101820.0,101810.0,2.25446464]
[1747078304904,0.019,101820.0,101810.0,2.59446464]
[1747078305081,0.019,101820.0,101810.0,2.49861034]
[1747078305716,0.009,101820.0,101810.0,2.49861034]
[1747078306131,0.001,101820.0,101810.0,2.49961034]
[1747078306580,0.002,101820.0,101810.0,2.50461034]
[1747078307941,0.002,101820.0,101810.0,2.85247536]
[1747078308155,0.00915493,101840.0,101830.0,0.62930632]
[1747078308370,0.00915493,101840.0,101830.0,1.18633134]
[1747078308594,0.00915493,101840.0,101830.0,1.28218564]
[1747078308827,0.00915493,101840.0,101830.0,1.37803994]
[1747078309049,0.03860807,101850.0,101840.0,0.27274327]
[1747078309268,0.0287902,101850.0,101840.0,0.62060829]
[1747078309487,0.03909505,101850.0,101840.0,0.62060829]
[1747078310159,0.04891321,101850.0,101840.0,0.62060829]
[1747078310374,0.03909505,101850.0,101840.0,0.62060829]
[1747078310629,0.01364171,101850.0,101840.0,0.73446259]
[1747078311081,0.01364171,101850.0,101840.0,0.74900344]
[1747078311295,0.00448678,101850.0,101840.0,1.09686846]
[1747078311504,0.00448678,101850.0,101840.0,1.19272276]
[1747078311718,0.00448678,101850.0,101840.0,1.59272276]
[1747078311928,0.00448678,101850.0,101840.0,1.19272276]
[1747078312135,0.01430427,101850.0,101840.0,0.84485774]
[1747078312347,0.00448678,101850.0,101840.0,0.84485774]
[1747078312769,0.00448678,101850.0,101840.0,1.53272276]
[1747078312977,0.00448678,101850.0,101840.0,1.18485774]
[1747078313390,0.00448678,101850.0,101840.0,1.08900344]
[1747078314293,0.00448678,101850.0,101840.0,1.43686846]
[1747078314677,0.00448678,101850.0,101840.0,1.83686846]
[1747078316100,0.00448678,101850.0,101840.0,1.48900344]
[1747078318223,0.00448678,101850.0,101840.0,1.83686846]
[1747078318432,0.00448678,101850.0,101840.0,1.93272276]
[1747078318637,0.62205297,101890.0,101880.0,0.01]
[1747078319166,0.6311993,101890.0,101880.0,0.01]
[1747078319871,0.8530393,101890.0,101880.0,0.011]
[1747078320078,0.8670393,101890.0,101880.0,0.012]
[1747078320873,0.8670393,101890.0,101880.0,0.01214391]
[1747078321291,0.7883727,101890.0,101880.0,0.01214391]
[1747078321709,0.884227,101890.0,101880.0,0.01214391]
[1747078321958,1.23205202,101890.0,101880.0,0.00214391]
[1747078323044,0.884187,101890.0,101880.0,0.00214391]
[1747078324866,1.23205202,101890.0,101880.0,0.00214391]
[1747078325078,0.88409793,101890.0,101880.0,0.00214391]
[1747078326329,0.88401793,101890.0,101880.0,0.00214391]
[1747078326531,0.58401793,101890.0,101880.0,0.00214391]
[1747078326704,0.86531793,101890.0,101880.0,0.00214391]
[1747078327736,0.54225065,101890.0,101880.0,0.58576355]
[1747078327949,0.77055897,101890.0,101880.0,0.56613368]
[1747078328160,0.77055897,101890.0,101880.0,0.21826866]
[1747078328161,0.76074505,101890.0,101880.0,0.21826866]
[1747078328573,0.76074505,101890.0,101880.0,0.24688384]
[1747078328775,0.76074505,101890.0,101880.0,0.23706866]
[1747078328989,0.76074505,101890.0,101880.0,0.26142478]
[1747078329231,0.75093084,101890.0,101880.0,0.24179414]
[1747078329690,0.75093084,101890.0,101880.0,0.25244005]
[1747078329901,0.75093084,101890.0,101880.0,0.27074005]
[1747078330099,0.33614633,101890.0,101880.0,0.27074005]
[1747078330296,0.57422849,101890.0,101880.0,0.64801986]
[1747078330516,0.58404299,101890.0,101880.0,0.64801986]
[1747078330952,0.7803331,101890.0,101880.0,0.64801986]
[1747078331309,0.7803331,101890.0,101880.0,0.29034005]
[1747078331505,0.7803331,101890.0,101880.0,0.30015494]
[1747078331914,0.7803331,101890.0,101880.0,0.64801996]
[1747078332165,0.5446931,101890.0,101880.0,0.64601996]
[1747078332378,0.24637408,101890.0,101880.0,0.71209386]
[1747078332557,0.24837408,101890.0,101880.0,0.65783475]
[1747078332763,0.25818839,101890.0,101880.0,0.65783475]
[1747078333005,0.24837408,101890.0,101880.0,0.65783475]
[1747078333203,0.25818829,101890.0,101880.0,0.65783475]
[1747078333412,0.24837408,101890.0,101880.0,0.65783475]
[1747078333650,0.03977408,101890.0,101880.0,0.65783475]
[1747078333867,0.03977408,101890.0,101880.0,0.74325096]
[1747078334122,0.23852006,101890.0,101880.0,0.74325096]
[1747078334274,0.02014633,101890.0,101880.0,1.09111598]
[1747078334447,0.02014633,101890.0,101880.0,1.08325096]
[1747078334902,0.02995996,101890.0,101880.0,1.08325096]
[1747078335097,0.01114633,101890.0,101880.0,1.08225096]
[1747078335325,0.02096006,101890.0,101880.0,1.08225096]
[1747078335529,0.01214633,101890.0,101880.0,1.09225096]
[1747078335947,0.01014633,101890.0,101880.0,1.09125096]
[1747078336168,0.01014633,101890.0,101880.0,1.10225096]
[1747078336639,0.01996006,101890.0,101880.0,1.01683475]
[1747078336870,0.02977398,101890.0,101880.0,1.01683475]
[1747078337099,0.03958819,101890.0,101880.0,1.01683475]
[1747078337310,0.01996006,101890.0,101880.0,1.01683475]
[1747078337530,0.02977398,101890.0,101880.0,1.01683475]
[1747078338799,0.01996006,101890.0,101880.0,1.01683475]
[1747078339010,0.02977398,101890.0,101880.0,1.01683475]
[1747078339163,0.02977398,101890.0,101880.0,1.55640837]
[1747078339164,0.01014633,101890.0,101880.0,1.55640837]
[1747078339389,0.01996006,101890.0,101880.0,1.01683475]
[1747078340049,0.02977398,101890.0,101880.0,1.01683475]
[1747078340498,0.02977398,101890.0,101880.0,1.41683475]
[1747078340924,0.53587907,101890.0,101880.0,0.37568476]
[1747078341159,0.73446515,101890.0,101880.0,0.02114391]
[1747078341394,0.73446515,101890.0,101880.0,0.03114391]
[1747078341630,0.73446515,101890.0,101880.0,0.04568476]
[1747078341848,0.56711945,101890.0,101880.0,0.02114391]
[1747078342075,0.56711945,101890.0,101880.0,0.03114391]
[1747078345993,0.54901945,101890.0,101880.0,0.03114391]
[1747078346530,0.84901945,101890.0,101880.0,0.04095937]
[1747078346741,0.83031945,101890.0,101880.0,0.03114391]
[1747078346957,0.83031945,101890.0,101880.0,0.22745329]
[1747078347173,0.01014633,101890.0,101880.0,0.66555942]
[1747078347399,0.01996016,101890.0,101880.0,0.6555044]
[1747078347846,0.01014633,101890.0,101880.0,1.34336942]
[1747078348067,0.01014633,101890.0,101880.0,0.64763938]
[1747078348281,0.01014633,101890.0,101880.0,1.34336942]
[1747078348531,0.01014633,101890.0,101880.0,1.53507802]
[1747078349435,0.001,101890.0,101880.0,1.53507802]
[1747078349659,0.001,101890.0,101880.0,1.55961416]
[1747078350321,0.001,101890.0,101880.0,1.56961416]
[1747078350781,0.03860118,101920.0,101910.0,0.28852901]
[1747078351011,0.0484127,101920.0,101910.0,0.63639403]
[1747078351229,0.03860108,101920.0,101910.0,0.63639403]
[1747078351647,0.0484125,101920.0,101910.0,0.63639403]
[1747078351886,0.05822402,101920.0,101910.0,0.63639403]
[1747078352102,0.05822402,101920.0,101910.0,0.63739403]
[1747078352351,0.03860108,101920.0,101910.0,0.63839403]
[1747078352574,0.0484125,101920.0,101910.0,0.65246155]
[1747078352801,0.01897863,101920.0,101910.0,0.99246155]
[1747078353029,0.01897853,101920.0,101910.0,1.04437095]
[1747078353262,0.00916769,101920.0,101910.0,1.39223597]
[1747078353479,0.02878947,101920.0,101910.0,1.04437095]
[1747078353706,0.0386006,101920.0,101910.0,1.04437095]
[1747078354125,0.0386006,101920.0,101910.0,1.04337095]
[1747078354361,0.0386006,101920.0,101910.0,1.04237095]
[1747078354832,0.01897844,101920.0,101910.0,1.04237095]
[1747078355064,0.02878947,101920.0,101910.0,1.04237095]
[1747078355288,0.03860041,101920.0,101910.0,1.04237095]
[1747078357512,0.02878938,101920.0,101910.0,1.04237095]
[1747078357747,0.04841174,101920.0,101910.0,1.04237095]
[1747078358785,0.03860051,101920.0,101910.0,1.04237095]
[1747078358978,0.04841174,101920.0,101910.0,1.04237095]
[1747078359106,0.05822316,101920.0,101910.0,0.99046155]
[1747078359334,0.05822306,101920.0,101910.0,0.99046155]
[1747078359570,0.52502276,101920.0,101910.0,0.02406752]
[1747078359801,0.54312276,101920.0,101910.0,0.02406752]
[1747078360328,0.19625159,101910.0,101900.0,0.9571988]
[1747078360537,0.02943628,101910.0,101900.0,0.61914664]
[1747078360748,0.23550016,101910.0,101900.0,0.60933378]
[1747078360982,0.22504414,101910.0,101900.0,0.5799117]
[1747078361195,0.22504414,101910.0,101900.0,0.60935165]
[1747078361426,0.22504414,101910.0,101900.0,0.63016461]
[1747078361646,0.22504414,101910.0,101900.0,0.63616461]
[1747078362096,0.22504414,101910.0,101900.0,0.62635165]
[1747078362323,0.22504414,101910.0,101900.0,0.37154085]
[1747078362533,0.22504414,101910.0,101900.0,0.59743868]
[1747078362764,0.75110414,101910.0,101900.0,0.027]
[1747078364168,0.86505844,101910.0,101900.0,0.017]
[1747078364394,1.1337557,101910.0,101900.0,0.017]
[1747078364622,1.7337557,101910.0,101900.0,0.017]
[1747078365305,1.7337557,101910.0,101900.0,0.027]
[1747078365526,1.7337557,101910.0,101900.0,0.011]
[1747078365746,1.7337557,101910.0,101900.0,0.01]
[1747078365960,0.21591844,101890.0,101880.0,0.34014391]
[1747078366203,0.42383844,101890.0,101880.0,0.00014391]
[1747078366439,0.42383844,101890.0,101880.0,0.01014391]
[1747078366655,0.42383844,101890.0,101880.0,0.00014391]
[1747078366860,0.43300613,101890.0,101880.0,0.01014391]
[1747078367322,0.43300613,101890.0,101880.0,0.01614391]
[1747078367766,0.43300613,101890.0,101880.0,0.02714391]
[1747078367985,0.84736043,101890.0,101880.0,0.01714391]
[1747078368425,0.84736043,101890.0,101880.0,0.02714391]
[1747078368915,0.82886043,101890.0,101880.0,0.02714391]
[1747078371308,0.53671602,101890.0,101880.0,0.6351044]
[1747078371542,0.00916769,101890.0,101880.0,0.7492587]
[1747078371976,0.00981363,101890.0,101880.0,0.7492587]
[1747078372186,0.55626049,101900.0,101890.0,0.27007331]
[1747078372421,0.32879342,101900.0,101890.0,0.97593833]
[1747078372627,0.00916769,101900.0,101890.0,0.97593833]
[1747078372846,0.03860647,101900.0,101890.0,1.07179263]
[1747078373064,0.02943878,101900.0,101890.0,1.07179263]
[1747078373693,0.03925203,101900.0,101890.0,1.07179263]
[1747078374134,0.01962553,101900.0,101890.0,1.07179263]
[1747078374347,0.02943868,101900.0,101890.0,0.97593833]
[1747078374548,0.02943849,101900.0,101890.0,0.97593833]
[1747078374976,0.0490649,101900.0,101890.0,0.62807331]
[1747078375248,0.0490649,101900.0,101890.0,0.97593833]
[1747078376769,0.24533652,101900.0,101890.0,0.95793842]
[1747078377409,0.24533652,101900.0,101890.0,0.96775225]
[1747078377410,0.04906567,101900.0,101890.0,0.96775225]
[1747078377609,0.03925213,101900.0,101890.0,0.96775225]
[1747078377815,0.02943888,101900.0,101890.0,0.98695225]
[1747078378028,0.02943888,101900.0,101890.0,1.08280655]
[1747078378254,0.32879198,101910.0,101900.0,0.2357106]
[1747078378471,0.75242843,101910.0,101900.0,0.59346266]
[1747078378682,0.75242843,101910.0,101900.0,0.60327581]
[1747078378891,0.75242843,101910.0,101900.0,0.25541079]
[1747078379741,0.75242843,101910.0,101900.0,0.25641079]
[1747078380391,0.75242843,101910.0,101900.0,0.25741079]
[1747078380579,0.75242843,101910.0,101900.0,0.26722385]
[1747078380928,0.75242843,101910.0,101900.0,0.25741079]
[1747078381137,0.74261643,101910.0,101900.0,0.25741079]
[1747078381561,0.73280414,101910.0,101900.0,0.22789783]
[1747078382247,0.73280414,101910.0,101900.0,0.27642201]
[1747078382484,0.73280414,101910.0,101900.0,0.28630905]
[1747078382972,0.73280414,101910.0,101900.0,0.22789783]
[1747078382973,0.72299176,101910.0,101900.0,0.22789783]
[1747078383202,0.72299176,101910.0,101900.0,0.23771118]
[1747078383407,0.72299176,101910.0,101900.0,0.24752443]
[1747078383615,0.72299176,101910.0,101900.0,0.26592443]
[1747078384050,0.72299176,101910.0,101900.0,0.24629783]
[1747078384279,1.31677678,101910.0,101900.0,0.002]
[1747078384501,1.79129768,101910.0,101900.0,0.002]
[1747078385395,1.9682827,101910.0,101900.0,0.002]
[1747078385648,1.62041768,101910.0,101900.0,0.002]
[1747078385879,1.54175108,101910.0,101900.0,0.002]
[1747078387456,2.9128161,101910.0,101900.0,0.002]
[1747078387971,2.56495108,101910.0,101900.0,0.002]
[1747078390254,2.21696606,101910.0,101900.0,0.002]
[1747078390477,2.56483108,101910.0,101900.0,0.002]
[1747078390943,2.34959932,101910.0,101900.0,0.002]
[1747078391166,2.43814589,101910.0,101900.0,0.002]
[1747078391407,2.11494589,101910.0,101900.0,0.21808429]
[1747078391617,1.48286589,101910.0,101900.0,0.05736278]
[1747078391835,0.3,101910.0,101900.0,0.6491381]
[1747078392060,0.2369958,101910.0,101900.0,0.68317895]
[1747078392265,0.45287225,101910.0,101900.0,0.68317915]
[1747078392692,0.44306054,101910.0,101900.0,0.63781637]
[1747078393164,0.42343645,101910.0,101900.0,0.28013849]
[1747078393415,0.42343645,101910.0,101900.0,0.28995174]
[1747078393876,0.42343645,101910.0,101900.0,0.29976489]
[1747078394550,0.42343645,101910.0,101900.0,0.28013849]
[1747078394551,0.41362416,101910.0,101900.0,0.28013849]
[1747078394772,0.41362416,101910.0,101900.0,0.28995174]
[1747078395485,0.41362416,101910.0,101900.0,0.24243849]
[1747078396322,0.70381159,101910.0,101900.0,0.24243849]
[1747078396805,0.79966589,101910.0,101900.0,0.012]
[1747078397011,1.09966589,101910.0,101900.0,0.012]
[1747078399370,0.60191837,101910.0,101900.0,0.24599726]
[1747078399583,0.73312883,101910.0,101900.0,0.2556842]
[1747078400257,0.31962467,101910.0,101900.0,0.2556842]
[1747078400469,0.74290054,101910.0,101900.0,0.63771608]
[1747078400685,0.75271311,101910.0,101900.0,0.63771608]
[1747078401125,0.75271311,101910.0,101900.0,0.63771628]
[1747078401345,0.74290121,101910.0,101900.0,0.63771628]
[1747078403311,0.75207679,101910.0,101900.0,0.63771628]
[1747078404952,0.75207679,101910.0,101900.0,0.28985126]
[1747078405112,0.7422646,101910.0,101900.0,0.27022505]
[1747078405658,0.73245222,101910.0,101900.0,0.2605383]
[1747078405889,0.72263974,101910.0,101900.0,0.04464085]
[1747078406133,1.17624649,101910.0,101900.0,0.002]
[1747078406341,0.89504649,101910.0,101900.0,0.012]
[1747078406549,0.89504649,101910.0,101900.0,0.002]
[1747078406778,0.52838147,101910.0,101900.0,0.012]
[1747078407232,0.50868147,101910.0,101900.0,0.012]
[1747078407436,0.80868147,101910.0,101900.0,0.03282887]
[1747078407646,0.80868147,101910.0,101900.0,0.012]
[1747078409925,0.80868147,101910.0,101900.0,0.0303]
[1747078410551,0.80868147,101910.0,101900.0,0.012]
[1747078415639,0.75183612,101910.0,101900.0,0.63801637]
[1747078416307,0.22614738,101910.0,101900.0,0.73369619]
[1747078416520,0.24577147,101910.0,101900.0,0.73369619]
[1747078416971,0.25558385,101910.0,101900.0,0.73369619]
[1747078417385,0.24577147,101910.0,101900.0,0.64782923]
[1747078417625,0.25558385,101910.0,101900.0,0.64782923]
[1747078418506,0.03861147,101910.0,101900.0,0.98782923]
[1747078418728,0.00917558,101910.0,101900.0,1.08368353]
[1747078419035,0.00917558,101910.0,101900.0,1.43154855]
[1747078419233,0.00917558,101910.0,101900.0,1.52740285]
[1747078419437,0.7977739,101940.0,101930.0,0.27194406]
[1747078419652,0.78796498,101940.0,101930.0,0.26213409]
[1747078419863,0.76834628,101940.0,101930.0,0.26213409]
[1747078420068,0.75853659,101940.0,101930.0,0.25232363]
[1747078420277,0.75853659,101940.0,101930.0,0.0463]
[1747078420480,0.75853659,101940.0,101930.0,0.23512373]
[1747078420692,0.75853659,101940.0,101930.0,0.02924391]
[1747078421100,0.71244941,101940.0,101930.0,0.02924391]
[1747078421800,0.73229058,101940.0,101930.0,0.03024391]
[1747078422024,0.80830371,101940.0,101930.0,0.01214391]
[1747078426147,0.80830371,101940.0,101930.0,0.03184391]
[1747078426552,0.50536941,101940.0,101930.0,0.24435699]
[1747078426743,0.7220991,101940.0,101930.0,0.25416745]
[1747078428089,0.7220991,101940.0,101930.0,0.25316745]
[1747078428518,0.7220991,101940.0,101930.0,0.04714391]
[1747078428704,0.71228941,101940.0,101930.0,0.01114391]
[1747078429125,0.71228941,101940.0,101930.0,0.01014391]
[1747078429743,0.71228941,101940.0,101930.0,0.21616745]
[1747078430148,0.71228941,101940.0,101930.0,0.20635699]
[1747078430354,0.71228941,101940.0,101930.0,0.21616764]
[1747078430967,0.71228941,101940.0,101930.0,0.22597819]
[1747078431202,0.71228941,101940.0,101930.0,0.01014391]
[1747078431806,0.71228941,101940.0,101930.0,0.20635699]
[1747078432030,0.7220991,101940.0,101930.0,0.21616764]
[1747078432245,0.7319085,101940.0,101930.0,0.23578865]
[1747078432461,0.7319085,101940.0,101930.0,0.25378865]
[1747078433094,0.7220991,101940.0,101930.0,0.21616764]
[1747078433320,0.8179534,101940.0,101930.0,0.01014391]
[1747078433535,0.8340534,101940.0,101930.0,0.01014391]
[1747078435084,0.8179534,101940.0,101930.0,0.02974391]
[1747078435700,0.8179534,101940.0,101930.0,0.01014391]
[1747078436085,0.8179534,101940.0,101930.0,0.20635699]
[1747078436287,0.32879409,101940.0,101930.0,0.63515611]
[1747078436500,0.54536358,101940.0,101930.0,0.63515611]
[1747078436669,0.751367,101940.0,101930.0,0.6174528]
[1747078436898,0.751367,101940.0,101930.0,0.60764282]
[1747078437129,1.12760279,101940.0,101930.0,0.01014391]
[1747078441317,0.82760279,101940.0,101930.0,0.01014391]
[1747078441529,0.86190279,101940.0,101930.0,0.01014391]
[1747078441803,1.20976781,101940.0,101930.0,0.01014391]
[1747078441995,1.88321943,101940.0,101930.0,0.00014391]
[1747078442216,1.88921943,101940.0,101930.0,0.00014391]
[1747078442445,2.01376028,101940.0,101930.0,0.00014391]
[1747078442665,0.51591844,101890.0,101880.0,0.05571564]
[1747078442876,0.81841274,101890.0,101880.0,0.05586188]
[1747078443090,0.82758832,101890.0,101880.0,0.05586188]
[1747078444183,0.82758832,101890.0,101880.0,0.04586188]